Cogmind - Beta 10.2 --- EXPLORER MODE // 2020.12.18 @ 17:29:35 Player: Luigi Panache Result: Destroyed by D-53 Grenadier with Mini Grenade Launcher Performance ------------- Evolutions (0) 0 Regions Visited (2) 400 Robots Destroyed (10) 50 Value Destroyed (199) 199 Prototype IDs (0) 0 Alien Tech Used (0) 0 Bonus (0) 0 TOTAL SCORE: 649 Bonus ------- None Cogmind --------- Core Integrity 0/250 Matter 280/300 Energy 84/100 System Corruption 0% Temperature Cool (0) Movement Treading (160) Location -10/Mines Parts ------- > --- POWER (1) -------- (None) > --- PROPULSION (2) --- Light Treads Light Treads > --- UTILITY (3) ------ High-capacity Storage Unit > --- WEAPON (2) ------- (None) > --- INVENTORY (12) --- Medium Storage Unit High-capacity Storage Unit Targeting Computer Medium Laser Medium Laser Medium Laser Small Laser Assault Rifle Grenade Launcher Peak State ------------ > --- POWER ------------ Ion Engine > --- PROPULSION ------- Light Treads Light Treads > --- UTILITY ---------- Improved Heat Sink High-capacity Storage Unit Light Armor Plating > --- WEAPON ----------- Medium Laser Medium Laser > --- INVENTORY -------- Light Treads Light Treads Aluminum Leg Aluminum Leg Medium Storage Unit Targeting Computer Medium Laser Small Laser Assault Rifle Grenade Launcher [Rating: 11] Favorites ----------- Power Ion Engine Engine Ion Engine Propulsion Light Treads Treads Light Treads Utility Light Armor Plating Device Improved Heat Sink Storage High-capacity Storage Unit Processor Targeting Computer Protection Light Armor Plating Weapon Medium Laser Energy Gun Medium Laser Build | -11 -10 -10 ------- Run | Scr Mat Min Slots Evolved 1 | . 1 . Power . | . . . Propulsion . | . . . Utility 1 | . 1 . Weapon . | . . . Parts Attached 32 | 7 23 2 Power 2 | 1 1 . Engine 2 | 1 1 . Core . | . . . Reactor . | . . . Propulsion 12 | 2 8 2 Treads 12 | 2 8 2 Leg . | . . . Wheel . | . . . Hover . | . . . Flight . | . . . Utility 8 | 2 6 . Device 2 | . 2 . Storage 2 | 1 1 . Processor 1 | . 1 . Hackware . | . . . Protection 3 | 1 2 . Artifact . | . . . Weapon 10 | 2 8 . Energy Gun 10 | 2 8 . Energy Cannon . | . . . Ballistic Gun . | . . . Ballistic Cannon . | . . . Launcher . | . . . Special Weapon . | . . . Impact Weapon . | . . . Slashing Weapon . | . . . Piercing Weapon . | . . . Special Melee Weapon . | . . . Unidentified Prototypes . | . . . Parts Lost 7 | . . 7 Power 1 | . . 1 Propulsion 2 | . . 2 Utility 2 | . . 2 Weapon 2 | . . 2 Highest Loss Streak 7 | . . 7 Average Slot Usage (%) 95 | . 97 77 Engine 11 | . 11 9 Treads 24 | . 24 22 Device 10 | . 10 8 Storage 12 | . 12 12 Protection 11 | . 11 8 Energy Gun 23 | . 24 16 Naked Turns . | . . . Heaviest Build 45 | 20 45 45 Greatest Support 40 | 40 40 40 Greatest Overweight (x) 14 | 2 14 1 Average Overweight (x) . | . . . Largest Inventory Capacity 12 | 8 12 12 Average Capacity 10 | 6 11 12 Most Carried 12 | 5 12 11 Average Carried 8 | 2 8 10 Final Capacity 12 | 8 12 12 Final Carried 11 | 5 11 9 Class Distribution -------------------- 100% | Hacker-Mutant Dominant Class ---------------- Hacker-Mutant | -10/Materials Hacker-Mutant | -10/Mines Resources | -11 -10 -10 ----------- Run | Scr Mat Min Matter Collected 500 | 189 311 . Remotely . | . . . Salvage Created 315 | . 303 12 Parts 18 | . 17 1 Haulers Intercepted 1 | . 1 . Recyclers Shooed . | . . . Parts Field Recycled . | . . . Retrieved Matter . | . . . Parts Self-Destructed . | . . . Prevented . | . . . Kills | -11 -10 -10 ------- Run | Scr Mat Min Combat Hostiles Destroyed 5 | . 4 1 Melee 1 | . . 1 Guns 4 | . 4 . Classes Destroyed 5 | . 4 1 Worker 3 | . 2 1 Hauler 1 | . 1 . Watcher 2 | . 2 . Grunt 4 | . 4 . Assembled 1 | . . 1 Best Kill Streak 3 | . 3 2 Combat Bots Only 2 | . 2 1 Max Kills in Single Turn 2 | . 2 1 Gunslinging . | . . . Exploded . | . . . Melee 1 | . . 1 Uniques/NPCs Destroyed . | . . . Combat | -11 -10 -10 -------- Run | Scr Mat Min Damage Taken 949 | . 156 793 Core 259 | . 18 241 Absorbed by Shields . | . . . Core Remaining (%) 100 | 100 . . Volleys Fired 24 | 1 22 1 Largest 2 | 1 2 2 Hottest 100 | 50 100 100 Shots Fired 46 | 1 43 2 Gun 46 | 1 43 2 Cannon . | . . . Launcher . | . . . Special . | . . . Kinetic . | . . . Thermal 46 | 1 43 2 Explosive . | . . . Electromagnetic . | . . . Robot Hit Streak 37 | 1 37 . Robot Miss Streak 3 | . 1 3 Penetration Max . | . . . Secondary Targets . | . . . Shots Hit Robots 37 | 1 36 . Core Hits 19 | . 17 2 Critical Hits . | . . . Critical Kills . | . . . Critical Parts Destroyed . | . . . Melee Attacks . | . . . Impact . | . . . Slashing . | . . . Piercing . | . . . Sneak Attacks . | . . . Combat Hostiles . | . . . Follow-up Attacks . | . . . Damage Inflicted 491 | 13 461 17 Guns 486 | 13 461 12 Cannons . | . . . Explosions . | . . . Melee . | . . . Ramming 5 | . . 5 Kinetic . | . . . Thermal 486 | 13 461 12 Explosive . | . . . Electromagnetic . | . . . Impact . | . . . Slashing . | . . . Piercing . | . . . Highest Corruption . | . . . Average Corruption . | . . . Corruption Purged . | . . . Overload Shots . | . . . Overflow Damage . | . . . Projectiles . | . . . Explosions . | . . . Melee . | . . . Knockbacks . | . . . Impact . | . . . Kinetic . | . . . Secondary . | . . . Self-Inflicted Damage . | . . . Shots . | . . . Rammed 1 | . . 1 Targets Rammed 2 | . . 2 Kicked . | . . . Crushed 1 | . . 1 Highest Temperature 285 | 16 285 16 Average Temperature 59 | 8 65 6 Received Heat Transfer 203 | . 123 80 Effects 1 | . 1 . Energy Bleed 1 | . 1 . Siege Activations . | . . . Robots Corrupted . | . . . Combat Hostiles . | . . . Parts Fried . | . . . Impact Corruptions . | . . . Robots Melted . | . . . Combat Hostiles . | . . . Parts Melted 2 | . 2 . Heat Transferred 1443 | 37 1369 37 Parts Sabotaged . | . . . Parts Stolen . | . . . Parts Stripped . | . . . Power Chain Reactions . | . . . Missiles Intercepted . | . . . Alert | -11 -10 -10 ------- Run | Scr Mat Min Peak Influence 50 | . 50 15 Initial 1 | . . 1 Average 18 | . 20 3 Maximum Alert Level . | . . . Low Security (%) 100 | 100 100 100 Level 1 . | . . . Level 2 . | . . . Level 3 . | . . . Level 4 . | . . . Level 5 . | . . . High Security . | . . . Max Security . | . . . Squads Dispatched . | . . . Investigation . | . . . Extermination . | . . . Reinforcement . | . . . Assault . | . . . Garrison . | . . . Intercept . | . . . Construction Impeded . | . . . Haulers Reinforced . | . . . Stealth | -11 -10 -10 --------- Run | Scr Mat Min Distress Signals . | . . . Communications Jammed . | . . . Distress Signals . | . . . Times Spotted 24 | . 6 18 Peak Tracking Total 11 | . 2 11 Tactical Retreats . | . . . Traps | -11 -10 -10 ------- Run | Scr Mat Min Traps Triggered 9 | . 9 . Indirectly . | . . . Trap Hack Attempts . | . . . Triggered . | . . . Disarmed . | . . . Reprogrammed . | . . . Reused . | . . . Traps Extracted . | . . . Installed . | . . . Triggered . | . . . Machines | -11 -10 -10 ---------- Run | Scr Mat Min Machines Disabled . | . . . Max in Single Turn . | . . . Machines Sabotaged . | . . . Garrisons Compromised . | . . . Overloaded Fab Kills . | . . . Fab Network Shutdowns . | . . . Hacking | -11 -10 -10 --------- Run | Scr Mat Min Machines Accessed 6 | . 6 . Terminals 6 | . 6 . Fabricators . | . . . Repair Stations . | . . . Recycling Units . | . . . Scanalyzers . | . . . Garrison Access . | . . . Total Hacks 25 | . 25 . Successful 16 | . 16 . Failed 9 | . 9 . Catastrophic . | . . . Database Lockouts . | . . . Manual 20 | . 20 . Terminals 25 | . 25 . Fabricators . | . . . Repair Stations . | . . . Recycling Units . | . . . Scanalyzers . | . . . Garrison Access . | . . . Terminal Hacks 13 | . 13 . Part Schematic 3 | . 3 . Emergency Access Points 1 | . 1 . Terminal Index 1 | . 1 . Alert Level 1 | . 1 . Unreport Threat 2 | . 2 . Dispatch Records 1 | . 1 . Patrol Status 1 | . 1 . Transport Status 1 | . 1 . Hauler Manifests 1 | . 1 . Zone Layout 1 | . 1 . Fabricator Hacks . | . . . Repair Station Hacks . | . . . Recycling Unit Hacks . | . . . Scanalyzer . | . . . Garrison Access Hacks . | . . . Unauthorized Hacks 3 | . 3 . Terminals 3 | . 3 . Botnet 3 | . 3 . Fabricators . | . . . Repair Stations . | . . . Recycling Units . | . . . Scanalyzers . | . . . Garrison Access . | . . . Data Cores Recovered . | . . . Used . | . . . Hacking Detections 6 | . 6 . Full Trace Events . | . . . Feedback Events . | . . . Feedback Blocked . | . . . Robot Schematics Acquired . | . . . Robots Built . | . . . Matter . | . . . Time . | . . . Total Robot Build Rating . | . . . Part Schematics Acquired 3 | . 3 . Parts Built . | . . . Matter . | . . . Time . | . . . Total Part Build Rating . | . . . Parts Repaired . | . . . Time . | . . . Parts Recycled . | . . . Recycled Matter . | . . . Retrieved Matter . | . . . Retrieved Components . | . . . Parts Scanalyzed . | . . . Part Schematics Acquired . | . . . Parts Damaged . | . . . Bothacking | -11 -10 -10 ------------ Run | Scr Mat Min Used RIF Installer . | . . . Robots Hacked . | . . . Non-combat . | . . . Combat . | . . . Robot Hacks Applied . | . . . Relay Couplers Released . | . . . Robots Rewired . | . . . Allies Hacked . | . . . Hacks Repelled . | . . . Allies | -11 -10 -10 -------- Run | Scr Mat Min Total Allies . | . . . Largest Group . | . . . Highest-Rated Group . | . . . Highest-Rated Ally . | . . . Total Orders . | . . . Ally Attacks . | . . . Total Damage . | . . . Kills . | . . . Allies Corrupted . | . . . Allies Melted . | . . . Intel | -11 -10 -10 ------- Run | Scr Mat Min Robot Analysis Total . | . . . Derelict Logs Recovered . | . . . Drone Launches . | . . . Drone Recoveries . | . . . Exploration | -11 -10 -10 ------------- Run | Scr Mat Min Turns Passed 1344 | 70 1180 94 Spaces Moved 688 | 37 603 48 Core 7 | 6 1 . Treads 681 | 31 602 48 Legs . | . . . Wheels . | . . . Hover . | . . . Flight . | . . . Fastest Speed 50 | 50 160 160 Average Speed 173 | 144 175 177 Slowest Speed 750 | 160 750 180 Overloaded Moves . | . . . Propulsion Burnouts . | . . . Robots Hopped . | . . . Cave-ins Triggered . | . . . Exploration Rate (%) 37 | 3 89 20 Regions Visited 2 Branch Regions 1 Pre-discovered Areas . | . . . Known Exits Taken 2 | 1 1 . Unknown Exits Taken . | . . . Scrap Searched . | . . . Spaces Dug . | . . . Terrain Destroyed . | . . . Melee . | . . . Projectile . | . . . AOE . | . . . Terrain Rammed . | . . . Walls Destroyed . | . . . Machines Disabled . | . . . Actions | -11 -10 -10 --------- Run | Scr Mat Min Total 776 | 49 674 53 Wait 17 | . 17 . Move 686 | 36 602 48 Hop . | . . . Pick Up 11 | 5 6 . Fast Attach 23 | 7 16 . Attach 4 | . 2 2 Detach . | . . . Swap 5 | . 5 . Drop 4 | . 4 . Fire 24 | 1 22 1 Melee . | . . . Ram . | . . . Kick . | . . . Crush 2 | . . 2 Escape Stasis . | . . . Rewire . | . . . Trap . | . . . Miscellaneous . | . . . Route ------- -11/Scrapyard -10/Materials (discovered 5 exits: *Mat x3 / *Min x2) -10/Mines History --------- Turn | Location | Event 23 | -11/Scrapyard | Identified exit to Materials 23 | -11/Scrapyard | Discovered exit to Materials (range 14) 71 | -11/Scrapyard | Entered Materials 71 | -10/Materials | Evolved 1 slot: Utility x1 305 | -10/Materials | Build established: Hacker-Mutant 396 | -10/Materials | Identified exit to Mines 396 | -10/Materials | Discovered exit to Mines (range 14) 481 | -10/Materials | Identified exit to Materials 481 | -10/Materials | Discovered exit to Materials (range 4) 630 | -10/Materials | Discovered exit to Mines (range 12) 893 | -10/Materials | Discovered exit to Materials (range 15) 1108 | -10/Materials | Discovered exit to Materials (range 11) 1251 | -10/Materials | Entered Mines 1271 | -10/Mines | Met a Derelict bent on vengeance 1285 | -10/Mines | Assembled infested the area 1328 | -10/Mines | Core integrity fell below 50% 1338 | -10/Mines | Core integrity fell below 20% 1345 | -10/Mines | Destroyed by D-53 Grenadier with Mini Grenade Launcher Last Messages --------------- 01320_ as-35432 destroyed. 01321_ as-04439 destroyed. 01322_ Slammed into as-76009. 01323_ The unstable cave ceiling collapses. 01323_ as-76009 destroyed. 01323_ as-73343 destroyed. 01323_ Ion Engine destroyed. 01323_ as-85446 destroyed. 01323_ as-89699 destroyed. 01325_ K-01 Serf collects debris. 01330_ The unstable cave ceiling collapses. 01331_ as-21577 destroyed. 01331_ as-57891 destroyed. 01332_ K-01 Serf collects debris. 01336_ The unstable cave ceiling collapses. 01336_ K-01 Serf collects debris. 01336_ Lgt. Treads destroyed. 01337_ The unstable cave ceiling collapses. 01340_ K-01 Serf collects debris. 01342_ The unstable cave ceiling collapses. Map ----- +----------------------------------------------------+ | ?????????????###### ########???????????????? | | ??????????????## #??????????????????????? | | ????????????### #??????????????????????? | | ???????????## ###??????????????????????? | | ???????????# #????????????????????????? | | ??????????## ##???????????????????????? | | ??????????# ##??????????????????????? | | ??????????# #??????????????????????? | | ??????????## #??????????????????????? | | ???????????### #??????????????????????? | | ?????????????## #??????????????????????? | | ?????????###??## ##?????????????????????? | | ?????##### ##### ##????????????????????? | | ???### # ## #????????????????????? | | ???# # %* #????????????????????? | | ???# # ## ##????????????????????? | | #### ##?###?????????????????????? | | ########???????????????????? | | # ##??????????????????? | | ### ###????????????????? | | ??## # # ###??????????????? | | ???##### # # #??????????????? | | ???????## ## d #??????????????? | | ????????#?# # td #??????????????? | | ??????????# #### #?????? | | ??????????# # @ #????? | | ??????????### #????? | | ????????????####### ##### #?????? | | ??????????????????## # #?????????????? | | ???????????????????##### ####?????????????? | | ???????????????????????###?????????????????? | | ???????????????????????????????????????????? | | ???????????????????????????????????????????? | | ???????????????????????????????????????????? | | | | | | | | | | | | | | | | | | | | | | | | | | | | | | | | | +----------------------------------------------------+ Best States ------------- Heat Dissipation 39 Energy Generation 10 Energy Capacity 250 Matter Stores 300 Matter Capacity 300 Sight Range 16 Terrain Scan Density 10 Armor Coverage 150 Resistance: KI 35 Resistance: TH 35 Resistance: EX 35 Resistance: EM 35 Resistance: I 35 Resistance: S 35 Resistance: P 35 Evasion (%) 40 Targeting Accuracy 5 Recoil Reduction 2 Offensive Hacking 20 Item Schematics ----------------- Grenade Launcher | -10/Materials | Hacked Med. Storage Unit | -10/Materials | Hacked Lgt. Treads | -10/Materials | Hacked Robot Schematics ------------------ None Fabricated ------------ Nothing Alien Tech Used ----------------- None Achievements -------------- None Challenges ------------ None Game ------ Seed SuperchargedHardlightPit Manual? 0 Play Time 00:14:37 Cumulative 149.8 hours Start 2020.12.18 @ 17:12:38 End 2020.12.18 @ 17:29:35 Sessions 1 Manual Loads 0 Difficulty Explorer Special Mode None Game No. 126 Rogue 34 Adventurer 51 Explorer 41 Win Type - Total 8 Types 8/0/0/0/0/0/0/0/0 Lore% 59 Gallery% 74 Achievement% 57 Wizard Run 0 Options --------- ASCII 0 Keyboard 0 Movement Numpad Keybinds 0 Fullscreen 2 Font 18/TerminusBold Map View 76x50 Tactical HUD 1 Map Filters NONE Filters NONE Steam 1 RUN: f1e52f72-f5a8-418e-a1a3-7359df8c635d